bitfinex/quotes_SOLUSD_20241214
["timestamp","ask_amount","ask_price","bid_price","bid_amount"]
[1734186095203,0.84489773,221.98,221.89,0.12549]
[1734186096486,30.371384,222.02,221.9,23.776884]
[1734186096487,20.0,222.0,221.9,23.776884]
[1734186096685,20.0,222.0,221.91,0.12549]
[1734186096686,0.67605165,221.99,221.91,0.12549]
[1734186097582,0.67605165,221.99,221.91,0.25098]
[1734186097782,4.94413498,222.02,221.96,0.12549]
[1734186097984,0.67605165,222.02,221.96,24.027864]
[1734186098776,0.67605165,222.03,221.96,24.027864]
[1734186101688,0.67605165,222.03,221.94,8.58111875]
[1734186101689,0.67605165,222.03,221.95,24.027864]
[1734186103080,0.67605165,222.03,221.94,24.027864]
[1734186109595,0.67605165,222.03,221.94,0.12549]
[1734186115185,6.3766,222.02,221.85,0.67573946]
[1734186115391,20.0,221.99,221.85,0.67573946]
[1734186115702,0.67605165,221.98,221.87,0.12549]
[1734186115902,0.67605165,221.98,221.86,10.13511875]
[1734186116407,0.67605165,221.98,221.87,0.12549]
[1734186116705,0.67605165,221.98,221.88,0.12549]
[1734186119095,1.6288,221.97,221.8,2.32105787]
[1734186119427,20.0,221.93,221.8,0.67595787]
[1734186119713,20.0,221.93,221.77,0.67610172]
[1734186119714,0.67605165,221.92,221.77,0.67610172]
[1734186119891,0.67605165,221.92,221.78,8.58111875]
[1734186120589,20.67605165,221.92,221.79,0.12549]
[1734186120806,20.0,221.91,221.79,0.12549]
[1734186121008,0.67605165,221.9,221.79,24.027864]
[1734186121214,0.67605165,221.9,221.75,2.32128217]
[1734186121412,1.6288,221.89,221.77,8.58111875]
[1734186121596,0.67605165,221.88,221.78,0.12549]
[1734186122407,0.67605165,221.88,221.78,24.027864]
[1734186122726,7.05265165,221.88,221.79,0.12549]
[1734186122892,20.0,221.85,221.74,8.58111875]
[1734186123223,0.67605165,221.84,221.74,8.58111875]
[1734186123589,0.67605165,221.84,221.74,0.25098]
[1734186123997,0.67605165,221.84,221.71,9.25743031]
[1734186124224,0.67605165,221.84,221.71,8.58111875]
[1734186124992,0.67605165,221.84,221.7,8.58111875]
[1734186125229,0.67605165,221.84,221.66,0.67644976]
[1734186125230,1.6288,221.83,221.66,0.67644976]
[1734186125424,20.0,221.78,221.66,0.67644976]
[1734186125589,0.67605165,221.77,221.67,8.58111875]
[1734186126111,0.67605165,221.77,221.68,0.12549]
[1734186126502,0.67605165,221.77,221.65,20.0]
[1734186126714,0.67605165,221.77,221.63,0.67653921]
[1734186126911,1.6288,221.76,221.6,2.32171761]
[1734186127117,0.67605165,221.75,221.63,8.58111875]
[1734186127294,0.67605165,221.75,221.64,0.12549]
[1734186127495,0.67605165,221.75,221.64,0.80216011]
[1734186127800,0.67605165,221.75,221.67,0.12549]
[1734186128515,0.67605165,221.75,221.68,24.027864]
[1734186130009,8.15499057,221.81,221.73,0.25098]
[1734186130010,0.67605165,221.8,221.73,0.25098]
[1734186130222,6.3766,221.81,221.75,0.25098]
[1734186131318,0.67605165,221.8,221.75,0.25098]
[1734186132098,0.67605165,221.8,221.72,8.58111875]
[1734186132099,6.3766,221.81,221.73,32.60898275]
[1734186132517,1.6288,221.82,221.75,0.12549]
[1734186132718,2.30485165,221.82,221.76,0.12549]
[1734186134724,2.30485165,221.82,221.74,24.027864]
[1734186136734,2.30485165,221.82,221.74,32.60898275]
[1734186138114,1.6288,221.82,221.76,0.25098]
[1734186138333,1.6288,221.82,221.76,24.027864]
[1734186139101,20.0,221.83,221.76,32.60898275]
[1734186139731,20.0,221.83,221.76,24.027864]
[1734186139913,0.67605165,221.82,221.75,24.027864]
[1734186140323,0.67605165,221.82,221.76,0.12549]
[1734186141043,0.67605165,221.82,221.7,8.58111875]
[1734186141333,0.67605165,221.82,221.71,0.12549]
[1734186141643,0.67605165,221.82,221.7,8.58111875]
[1734186141817,0.67605165,221.82,221.71,8.70660875]
[1734186142148,0.67605165,221.82,221.75,0.12549]
[1734186142308,0.67605165,221.82,221.74,0.12549]
[1734186142507,0.67605165,221.82,221.73,0.25098]
[1734186142738,0.67605165,221.82,221.73,0.12549]
[1734186144813,0.67605165,221.82,221.73,23.902374]
[1734186145231,0.67605165,221.82,221.74,0.12549]
[1734186147135,0.67605165,221.82,221.73,0.12549]
[1734186150432,0.67605165,221.85,221.76,8.70660875]
[1734186150633,0.67605165,221.85,221.75,23.902374]
[1734186150634,0.67605165,221.85,221.78,23.902374]
[1734186151038,0.67605165,221.85,221.77,24.027864]
[1734186151719,20.0,221.83,221.77,24.027864]
[1734186153235,0.67605165,221.82,221.76,0.12549]
[1734186153437,0.67605165,221.82,221.7,8.58111875]
[1734186153637,0.67605165,221.82,221.71,8.58111875]
[1734186153824,0.67605165,221.82,221.73,0.12549]
[1734186154429,0.67605165,221.82,221.74,8.70660875]
[1734186154745,20.0,221.83,221.76,24.027864]
[1734186155136,6.3766,221.86,221.76,24.027864]
[1734186155137,0.67605165,221.82,221.76,24.027864]
[1734186155333,0.67605165,221.85,221.76,0.12549]
[1734186155645,0.67605165,221.85,221.75,23.776884]
[1734186155646,20.0,221.83,221.75,23.776884]
[1734186155827,1.504,221.81,221.67,9.25740124]
[1734186156149,0.67605165,221.8,221.66,8.58111875]
[1734186156444,0.67605165,221.8,221.64,0.25098]
[1734186156736,0.67605165,221.8,221.68,0.12549]
[1734186157126,0.67605165,221.8,221.68,24.027864]
[1734186157442,0.67605165,221.8,221.68,23.902374]
[1734186158033,0.67605165,221.8,221.69,0.25098]
[1734186160631,6.5103,221.79,221.69,0.25098]
[1734186160945,0.67605165,221.78,221.69,0.25098]
[1734186162240,0.67605165,221.78,221.67,24.027864]
[1734186162755,0.67605165,221.78,221.69,0.12549]
[1734186162947,0.67605165,221.78,221.69,24.027864]
[1734186163154,0.67605165,221.78,221.69,0.25098]
[1734186163755,0.67605165,221.78,221.68,0.25098]
[1734186163928,20.0,221.76,221.68,0.25098]
[1734186164250,0.67605165,221.75,221.68,0.25098]
[1734186164640,0.67605165,221.75,221.66,24.027864]
[1734186166146,0.67605165,221.75,221.66,32.60898275]
[1734186166661,0.67605165,221.75,221.68,0.12549]
[1734186166834,0.67605165,221.78,221.68,32.60898275]
[1734186167033,0.67605165,221.78,221.68,24.027864]
[1734186167530,0.67605165,221.78,221.68,32.60898275]
[1734186168749,0.67605165,221.78,221.68,24.027864]
[1734186170453,0.67605165,221.78,221.7,24.027864]
[1734186174770,0.67605165,221.78,221.59,11.2818]
[1734186174771,20.0,221.76,221.64,20.0]
[1734186174975,0.67605165,221.75,221.64,0.12549]
[1734186175485,0.67605165,221.75,221.67,0.12549]
[1734186175977,0.67605165,221.75,221.67,24.027864]
[1734186176756,0.67605165,221.75,221.67,32.60898275]
[1734186177344,0.67605165,221.75,221.67,24.027864]
[1734186178571,6.5103,221.79,221.7,0.12549]
[1734186178572,0.67605165,221.78,221.7,0.12549]
[1734186182869,2.18005165,221.81,221.74,8.83209875]
[1734186183175,1.504,221.81,221.76,0.25098]
[1734186183355,0.67605165,221.84,221.76,0.25098]
[1734186191768,0.67605165,221.84,221.75,23.776884]
[1734186191972,20.0,221.82,221.68,10.20361875]
[1734186192165,0.67605165,221.81,221.68,10.20361875]
[1734186192775,0.67605165,221.81,221.7,8.58111875]
[1734186192982,0.67605165,221.81,221.72,0.12549]
[1734186193687,0.67605165,221.81,221.73,0.12549]
[1734186194190,0.67605165,221.81,221.67,8.58111875]
[1734186194368,20.67605165,221.81,221.67,8.58111875]
[1734186194575,20.67605165,221.81,221.68,0.12549]
[1734186194576,20.0,221.8,221.68,0.12549]
[1734186194773,0.67605165,221.79,221.68,0.12549]
[1734186195488,1.5021,221.78,221.68,0.12549]
[1734186195695,0.67605165,221.77,221.68,0.12549]
[1734186196202,0.67605165,221.77,221.68,23.902374]
[1734186196375,0.67605165,221.77,221.69,0.25098]
[1734186196699,1.5021,221.78,221.7,8.58111875]
[1734186196876,0.67605165,221.77,221.71,24.027864]
[1734186197377,0.67605165,221.77,221.71,0.12549]
[1734186198774,0.67605165,221.77,221.69,24.027864]
[1734186198980,1.5021,221.78,221.69,32.60898275]
[1734186199597,1.5021,221.78,221.72,0.12549]
[1734186200870,0.67605165,221.8,221.73,0.12549]
[1734186201100,0.67605165,221.82,221.74,32.60898275]
[1734186203776,0.67605165,221.82,221.74,24.027864]
[1734186205498,0.67605165,221.82,221.74,0.12549]
[1734186205684,0.67605165,221.82,221.73,0.25098]
[1734186206069,0.67605165,221.82,221.73,0.12549]
[1734186206482,0.67605165,221.82,221.72,0.12549]
[1734186206897,20.67605165,221.82,221.72,0.12549]
[1734186207099,20.67605165,221.82,221.71,0.12549]
[1734186207300,20.67605165,221.82,221.71,0.25098]
[1734186207794,20.67605165,221.82,221.64,0.67645266]
[1734186207994,20.0,221.81,221.65,8.58111875]
[1734186208179,0.67605165,221.8,221.65,8.58111875]
[1734186208378,0.67605165,221.8,221.67,0.12549]
[1734186208580,0.67605165,221.8,221.67,8.70660875]
[1734186209088,0.67605165,221.8,221.69,0.25098]
[1734186212599,0.67605165,221.8,221.67,24.027864]
[1734186212805,20.67605165,221.8,221.68,0.12549]
[1734186214320,20.0,221.76,221.68,0.12549]
[1734186214489,0.67605165,221.75,221.67,0.25098]
[1734186216184,0.67605165,221.75,221.63,10.20361875]
[1734186216404,0.67605165,221.75,221.64,0.12549]
[1734186216589,0.67605165,221.75,221.63,10.20361875]
[1734186216991,0.67605165,221.75,221.64,0.12549]
[1734186217193,0.67605165,221.75,221.64,24.027864]
[1734186218288,0.67605165,221.75,221.64,32.60898275]
[1734186218895,0.67605165,221.75,221.66,0.12549]
[1734186219102,0.67605165,221.75,221.66,24.027864]
[1734186219512,0.67605165,221.75,221.66,0.12549]
[1734186220897,0.67605165,221.75,221.65,23.902374]
[1734186221096,0.67605165,221.75,221.66,0.12549]
[1734186225791,0.67605165,221.75,221.64,23.902374]
[1734186225999,0.67605165,221.75,221.64,0.12549]
[1734186226196,0.67605165,221.75,221.64,0.25098]
[1734186226395,0.67605165,221.75,221.63,0.25098]
[1734186227817,20.67605165,221.75,221.63,0.25098]
[1734186228298,20.67605165,221.75,221.63,0.12549]
[1734186228694,20.67605165,221.75,221.61,23.902374]
[1734186228695,1.564,221.74,221.62,0.12549]
[1734186228900,6.76385165,221.73,221.62,0.12549]
[1734186229721,20.0,221.7,221.62,0.12549]
[1734186229939,0.67605165,221.69,221.62,0.12549]
[1734186232199,0.67605165,221.69,221.58,20.0]
[1734186232401,0.67605165,221.69,221.59,8.58111875]
[1734186233002,0.67605165,221.69,221.58,8.58111875]
[1734186233204,0.67605165,221.69,221.59,0.12549]
[1734186233718,0.67605165,221.69,221.59,24.027864]
[1734186234513,0.67605165,221.69,221.59,0.12549]
[1734186238024,0.67605165,221.69,221.6,0.12549]
[1734186238223,0.67605165,221.69,221.64,8.58111875]
[1734186238533,0.67605165,221.69,221.65,23.776884]
[1734186238732,0.67605165,221.72,221.64,0.25098]
[1734186239604,0.67605165,221.72,221.62,24.027864]
[1734186239809,20.0,221.7,221.6,23.776884]
[1734186240015,20.0,221.7,221.58,8.58111875]
[1734186240016,0.67605165,221.69,221.58,8.58111875]
[1734186240215,0.67605165,221.69,221.59,8.58111875]
[1734186240413,0.67605165,221.69,221.58,8.58111875]
[1734186240634,0.67605165,221.69,221.59,8.58111875]
[1734186241320,0.67605165,221.69,221.59,0.12549]
[1734186241506,0.67605165,221.69,221.59,24.027864]
[1734186243503,0.67605165,221.69,221.58,24.027864]
[1734186245011,1.5616,221.68,221.58,0.12549]
[1734186245335,0.67605165,221.67,221.57,23.776884]
[1734186245508,0.67605165,221.67,221.56,23.776884]
[1734186245713,0.67605165,221.67,221.56,24.027864]
[1734186246534,6.4555,221.66,221.54,23.776884]
[1734186246736,20.0,221.63,221.5,6.04025293]
[1734186247049,0.67605165,221.62,221.52,8.58111875]
[1734186247932,0.67605165,221.62,221.53,8.83209875]
[1734186248136,0.67605165,221.62,221.55,0.25098]
[1734186248355,20.0,221.63,221.57,0.25098]
[1734186248521,0.67605165,221.62,221.57,24.027864]
[1734186248838,0.67605165,221.65,221.57,24.027864]
[1734186249006,0.67605165,221.65,221.56,24.027864]
[1734186249514,0.67605165,221.65,221.56,0.25098]
[1734186256249,0.67605165,221.65,221.56,8.83209875]
[1734186256616,0.67605165,221.65,221.57,23.776884]
[1734186256843,0.67605165,221.65,221.56,0.25098]
[1734186259919,0.67605165,221.65,221.58,0.12549]
[1734186260220,0.67605165,221.65,221.58,24.027864]
[1734186265421,0.67605165,221.67,221.58,24.027864]
[1734186266523,0.67605165,221.67,221.58,32.60898275]
[1734186266732,0.67605165,221.67,221.58,33.2857905]
[1734186267033,1.5616,221.68,221.61,32.60898275]
[1734186269544,1.5616,221.68,221.61,0.12549]
[1734186269844,1.5616,221.68,221.62,24.027864]
[1734186270244,0.67605165,221.67,221.62,0.25098]
[1734186270921,0.67605165,221.67,221.62,0.12549]
[1734186271222,0.67605165,221.67,221.61,0.12549]
[1734186273025,0.67605165,221.67,221.6,23.776884]
[1734186276157,0.67605165,221.67,221.58,24.027864]
[1734186276365,0.67605165,221.67,221.58,0.12549]
[1734186277037,0.67605165,221.67,221.57,0.25098]
[1734186280680,0.67605165,221.67,221.56,0.12549]
[1734186281676,0.67605165,221.67,221.56,0.25098]
[1734186282545,0.67605165,221.67,221.57,23.776884]
[1734186285371,0.67605165,221.67,221.58,0.25098]
[1734186287258,0.67605165,221.67,221.52,0.67687678]
[1734186287259,0.67605165,221.67,221.55,23.776884]
[1734186287485,0.67605165,221.67,221.56,0.12549]
[1734186287773,0.67605165,221.67,221.56,0.25098]
[1734186290286,20.67605165,221.67,221.56,0.25098]
[1734186290659,0.67605165,221.67,221.56,0.25098]
[1734186290978,0.67605165,221.67,221.54,23.776884]
[1734186290979,6.5883,221.66,221.54,23.776884]
[1734186291160,20.0,221.63,221.54,23.776884]
[1734186291360,0.67605165,221.62,221.54,23.776884]
[1734186293787,0.67605165,221.62,221.54,32.35800275]
[1734186294004,0.67605165,221.62,221.55,8.83209875]
[1734186294182,0.67605165,221.62,221.56,23.776884]
[1734186299894,0.67605165,221.65,221.59,0.25098]
[1734186301599,0.67605165,221.65,221.58,23.776884]
[1734186301770,0.67605165,221.65,221.56,23.776884]
[1734186302994,20.0,221.63,221.55,23.902374]
[1734186303295,0.67605165,221.62,221.55,23.902374]
[1734186304384,0.67605165,221.62,221.55,32.48349275]
[1734186306594,0.67605165,221.62,221.55,23.776884]
[1734186307906,0.67605165,221.62,221.56,0.12549]
[1734186308080,0.67605165,221.65,221.57,23.776884]
[1734186308601,0.67605165,221.65,221.57,32.35800275]
[1734186309177,0.67605165,221.65,221.57,23.776884]
[1734186309597,0.67605165,221.65,221.57,32.35800275]
[1734186312111,0.67605165,221.65,221.57,23.776884]
[1734186312902,0.67605165,221.65,221.58,0.12549]
[1734186313206,0.67605165,221.65,221.58,8.70660875]
[1734186313391,0.67605165,221.67,221.59,23.776884]
[1734186315896,0.67605165,221.67,221.59,32.35800275]
[1734186316214,0.67605165,221.67,221.6,8.70660875]
[1734186316418,0.67605165,221.67,221.61,23.776884]
[1734186316709,0.67605165,221.67,221.61,32.35800275]
[1734186317794,0.67605165,221.67,221.61,23.776884]
[1734186318610,0.67605165,221.67,221.6,23.902374]
[1734186319187,0.67605165,221.67,221.6,23.776884]
[1734186319609,0.67605165,221.67,221.6,32.35800275]
[1734186320188,0.67605165,221.67,221.6,23.776884]
[1734186322009,0.67605165,221.67,221.59,23.902374]
[1734186322799,0.67605165,221.67,221.6,8.58111875]
[1734186322995,0.67605165,221.67,221.61,23.776884]
[1734186326826,8.05302981,221.71,221.55,0.67683808]
[1734186326827,0.67605165,221.7,221.63,23.776884]
[1734186328194,20.0,221.68,221.57,1.6235]
[1734186328400,0.67605165,221.67,221.59,8.58111875]
[1734186328598,0.67605165,221.67,221.6,23.776884]
[1734186328918,0.67605165,221.67,221.58,23.776884]
[1734186330519,0.67605165,221.67,221.58,32.35800275]
[1734186331129,0.67605165,221.67,221.6,8.58111875]
[1734186331326,0.67605165,221.67,221.61,23.776884]
[1734186333830,0.67605165,221.67,221.61,32.35800275]
[1734186336715,0.67605165,221.67,221.62,0.12549]
[1734186340703,0.67605165,221.67,221.61,23.776884]
[1734186341027,0.67605165,221.67,221.56,23.902374]
[1734186341214,0.67605165,221.67,221.6,23.902374]
[1734186342127,0.67605165,221.67,221.59,8.58111875]
[1734186345722,0.67605165,221.67,221.6,8.58111875]
[1734186353341,0.67605165,221.67,221.59,8.58111875]
[1734186353851,0.67605165,221.67,221.6,0.12549]
[1734186354722,0.67605165,221.67,221.59,8.58111875]
[1734186358132,0.67605165,221.67,221.57,0.25098]
[1734186358439,0.67605165,221.67,221.59,8.58111875]
[1734186364449,0.67605165,221.67,221.6,8.58111875]
[1734186366423,0.67605165,221.67,221.59,0.12549]
[1734186366622,0.67605165,221.67,221.57,0.12549]
[1734186366819,1.5621,221.66,221.56,32.35800275]
[1734186367028,0.67605165,221.65,221.55,0.12549]
[1734186367243,0.67605165,221.65,221.55,24.027864]
[1734186367839,0.67605165,221.65,221.55,32.60898275]
[1734186368351,0.67605165,221.65,221.48,7.68228296]
[1734186368352,20.0,221.61,221.48,7.68228296]
[1734186368556,0.67605165,221.6,221.46,1.19967052]
[1734186368727,0.67605165,221.6,221.48,8.58111875]
[1734186368928,1.5621,221.59,221.46,0.5226071]
[1734186369127,0.67605165,221.58,221.46,9.10372585]
[1734186369344,0.67605165,221.58,221.47,8.58111875]
[1734186369656,0.67605165,221.58,221.48,8.58111875]
[1734186369835,0.67605165,221.58,221.49,8.58111875]
[1734186370426,6.1393,221.57,221.48,8.58111875]
[1734186370631,0.67605165,221.56,221.5,8.70660875]
[1734186371232,0.67605165,221.56,221.5,24.027864]
[1734186372328,0.67605165,221.56,221.48,8.58111875]
[1734186373563,0.67605165,221.56,221.48,23.776884]
[1734186374526,0.67605165,221.56,221.48,8.58111875]
[1734186375360,0.67605165,221.56,221.47,32.60898275]
[1734186376842,0.67605165,221.56,221.46,9.10372585]
[1734186377578,20.0,221.54,221.46,0.5226071]
[1734186377863,0.67605165,221.53,221.46,0.5226071]
[1734186382165,1.5804,221.52,221.46,0.5226071]
[1734186382359,0.67605165,221.51,221.46,0.5226071]
[1734186382862,6.0109,221.5,221.46,0.5226071]
[1734186383163,0.67605165,221.49,221.46,0.5226071]
[1734186383336,20.0,221.47,221.46,0.5226071]
[1734186406086,0.67605165,221.5,221.46,0.5226071]
[1734186406285,16.19011891,221.56,221.46,0.5226071]
[1734186406286,20.0,221.53,221.46,0.5226071]
[1734186406586,0.67605165,221.52,221.46,0.5226071]
[1734186408892,0.67605165,221.55,221.46,0.5226071]
[1734186409869,0.67605165,221.56,221.46,0.5226071]
[1734186412193,20.0,221.55,221.46,0.5226071]
[1734186412376,0.67605165,221.54,221.46,0.5226071]
[1734186423002,0.67605165,221.55,221.46,0.5226071]
[1734186423198,0.67605165,221.55,221.47,1.5781]
[1734186423981,20.0,221.57,221.47,1.5781]
[1734186423982,0.67605165,221.56,221.47,1.5781]
[1734186425011,0.67605165,221.57,221.47,1.5781]
[1734186427188,0.67605165,221.57,221.47,10.15921875]
[1734186427794,8.66618563,221.63,221.47,10.15921875]
[1734186427795,0.67605165,221.58,221.49,8.58111875]
[1734186428107,0.67605165,221.58,221.5,6.0991]
[1734186428309,0.67605165,221.62,221.5,6.0991]
[1734186429400,20.0,221.61,221.5,6.0991]
[1734186429697,0.67605165,221.6,221.5,6.0991]
[1734186429885,0.67605165,221.6,221.51,10.15921875]
[1734186430391,0.67605165,221.6,221.51,1.5781]
[1734186430591,0.67605165,221.61,221.51,1.5781]
[1734186431388,0.67605165,221.61,221.51,10.15921875]
[1734186431588,0.67605165,221.62,221.51,10.15921875]
[1734186432491,0.67605165,221.63,221.51,10.15921875]
[1734186432702,20.67605165,221.63,221.51,10.15921875]
[1734186433611,20.67605165,221.63,221.52,8.58111875]
[1734186434485,0.67605165,221.63,221.52,8.58111875]
[1734186435112,0.67605165,221.64,221.52,8.58111875]
[1734186436015,0.67605165,221.64,221.53,8.58111875]
[1734186436618,0.67605165,221.64,221.52,0.12549]
[1734186436922,0.67605165,221.64,221.52,8.83209875]
[1734186439932,0.67605165,221.65,221.53,8.58111875]
[1734186440092,0.67605165,221.65,221.55,8.83209875]
[1734186440297,0.67605165,221.65,221.56,8.58111875]
[1734186440904,0.67605165,221.67,221.56,8.58111875]
[1734186441301,0.67605165,221.67,221.55,24.027864]
[1734186441302,0.67605165,221.67,221.55,32.60898275]
[1734186441604,0.67605165,221.67,221.55,24.027864]
[1734186450735,0.67605165,221.67,221.59,1.6101]
[1734186463151,21.77766195,221.68,221.59,1.6101]
[1734186463152,4.14101549,221.68,221.59,1.6101]
[1734186463338,1.77766195,221.68,221.59,1.6101]
[1734186463537,7.17580451,221.71,221.59,1.6101]
[1734186463738,8.95179259,221.71,221.59,1.6101]
[1734186465548,20.0,221.68,221.59,1.6101]
[1734186465933,8.95179259,221.71,221.59,1.6101]
[1734186465934,43.902374,221.67,221.59,1.6101]
[1734186466136,20.0,221.65,221.54,1.5715]
[1734186466353,20.0,221.64,221.54,1.5715]
[1734186470933,21.82943125,221.64,221.54,1.5715]
[1734186473356,26.61102894,221.67,221.54,10.15261875]
[1734186473357,20.0,221.65,221.54,10.15261875]
[1734186473540,20.0,221.66,221.55,8.58111875]
[1734186473933,20.0,221.66,221.54,10.15261875]
[1734186475056,2.70865494,221.67,221.54,10.15261875]
[1734186475057,22.70865494,221.67,221.54,10.15261875]
[1734186475258,20.0,221.66,221.54,10.15261875]
[1734186475839,20.0,221.66,221.54,1.5715]
[1734186476246,20.0,221.65,221.54,1.5715]
[1734186479268,20.0,221.64,221.54,1.5715]
[1734186480743,20.0,221.63,221.54,1.5715]
[1734186482260,20.0,221.62,221.54,1.5715]
[1734186484484,20.0,221.61,221.54,1.5715]
[1734186484673,20.0,221.6,221.54,1.5715]
[1734186485548,20.0,221.61,221.54,1.5715]
[1734186490463,20.0,221.62,221.54,1.5715]
[1734186492994,20.0,221.63,221.54,10.15261875]
[1734186493875,20.0,221.64,221.54,10.15261875]
[1734186494690,7.01088563,221.66,221.54,10.15261875]
[1734186495192,11.5352058,221.67,221.54,10.15261875]
[1734186495768,20.0,221.63,221.54,10.15261875]
[1734186496274,20.0,221.63,221.54,1.5715]
[1734186497397,20.0,221.63,221.55,6.3879]
[1734186497578,20.0,221.63,221.55,8.0543]
[1734186504784,20.0,221.63,221.56,8.83209875]
[1734186504983,7.01088563,221.68,221.57,8.58111875]
[1734186505204,7.01088563,221.7,221.58,1.6664]
[1734186506683,20.0,221.67,221.58,1.6664]
[1734186507407,10.25088563,221.71,221.58,1.6664]
[1734186507600,20.0,221.68,221.58,1.6664]
[1734186507976,10.25088563,221.71,221.59,15.09450875]
[1734186508199,10.25088563,221.71,221.59,6.51339]
[1734186508401,7.01088563,221.71,221.59,6.51339]
[1734186508582,7.01088563,221.72,221.59,6.51339]
[1734186509284,20.0,221.69,221.59,6.51339]
[1734186509480,20.0,221.69,221.59,6.3879]
[1734186510005,20.0,221.67,221.59,6.3879]
[1734186510207,20.0,221.65,221.59,6.3879]
[1734186511200,20.0,221.64,221.59,6.3879]
[1734186511409,20.0,221.63,221.59,6.3879]
[1734186514088,20.0,221.64,221.59,6.3879]
[1734186514496,20.0,221.63,221.59,6.3879]
[1734186517007,20.0,221.65,221.59,6.3879]
[1734186518709,20.0,221.64,221.59,6.3879]
[1734186519713,20.0,221.65,221.59,6.3879]
[1734186521012,20.0,221.64,221.59,6.3879]
[1734186521216,20.0,221.63,221.59,6.3879]
[1734186522739,20.0,221.64,221.59,6.3879]
[1734186524621,20.0,221.63,221.59,6.3879]
[1734186525916,20.0,221.63,221.58,1.6664]
[1734186526920,20.0,221.62,221.58,1.6664]
[1734186528304,20.0,221.63,221.58,1.6664]
[1734186529423,20.0,221.62,221.58,1.6664]
[1734186530323,20.0,221.63,221.58,1.6664]
[1734186530526,20.0,221.62,221.58,1.6664]
[1734186542739,7.01088563,221.67,221.59,8.58111875]
[1734186542940,14.02177127,221.68,221.6,8.58111875]
[1734186542941,7.01088563,221.68,221.6,8.58111875]
[1734186543236,7.01088563,221.69,221.62,1.5699]
[1734186543767,2.67634854,221.72,221.62,1.5699]
[1734186544368,20.0,221.71,221.62,1.5699]
[1734186544941,2.67634854,221.72,221.62,1.5699]
[1734186546258,20.0,221.71,221.62,1.5699]
[1734186546651,22.67634854,221.72,221.62,1.5699]
[1734186548170,2.67634854,221.72,221.62,1.5699]
[1734186550872,20.0,221.73,221.62,1.5699]
[1734186555873,20.0,221.73,221.64,6.3435]
[1734186556856,20.0,221.73,221.66,1.6023]
[1734186557057,20.0,221.74,221.66,1.6023]
[1734186557476,4.21767544,221.76,221.66,1.6023]
[1734186557477,24.21767544,221.76,221.66,1.6023]
[1734186557749,20.0,221.74,221.66,1.6023]
[1734186562991,2.66988364,221.73,221.66,1.6023]
[1734186563155,22.66988364,221.73,221.66,1.6023]
[1734186565313,4.21767544,221.76,221.66,1.6023]
[1734186565488,7.01088563,221.81,221.66,1.6023]
[1734186565812,0.12549,221.79,221.66,1.6023]
[1734186566112,2.70938937,221.77,221.66,1.6023]
[1734186566514,20.0,221.74,221.66,1.6023]
[1734186566721,24.34316544,221.76,221.66,1.6023]
[1734186566883,20.0,221.75,221.66,1.6023]
[1734186567082,20.0,221.71,221.66,1.6023]
[1734186572999,20.0,221.71,221.64,6.3435]
[1734186578225,20.0,221.71,221.6,1.5432]
[1734186581959,20.0,221.67,221.6,1.5432]
[1734186590432,20.0,221.69,221.6,1.5432]
[1734186590934,2.67899948,221.7,221.6,1.5432]
[1734186590935,20.0,221.68,221.6,1.5432]
[1734186593249,20.0,221.69,221.6,1.5432]
[1734186593844,20.0,221.68,221.6,1.5432]
[1734186598529,20.0,221.68,221.61,24.027864]
[1734186598936,20.0,221.68,221.6,1.5432]
[1734186600949,20.0,221.67,221.61,23.776884]
[1734186601950,20.0,221.68,221.61,23.776884]
[1734186603538,20.0,221.67,221.61,23.776884]
[1734186604239,20.0,221.68,221.61,23.776884]
[1734186605411,20.0,221.67,221.6,1.5432]
[1734186605877,20.0,221.66,221.6,1.5432]
[1734186610204,20.0,221.67,221.6,1.5432]
[1734186614381,20.0,221.66,221.6,1.5432]
[1734186616873,20.0,221.64,221.6,1.5432]
[1734186617076,20.0,221.64,221.59,6.1016]
[1734186617282,20.0,221.63,221.51,6.0389]
[1734186617490,20.0,221.61,221.51,6.0389]
[1734186617876,20.0,221.61,221.52,0.12549]
[1734186618599,20.0,221.61,221.52,0.25098]